[Event "Late-Titled-Tuesday-Blitz-May-14-2024"]
[Site "Chess.com"]
[Date "2024.05.14"]
[Round "4"]
[White "ChessSwole"]
[Black "schondeln"]
[Result "1-0"]
[WhiteElo "2611"]
[BlackElo "2352"]
[TimeControl "180+1"]
[EndTime "14:39:21 PDT"]
[Termination "ChessSwole won on time"]

1. d4 {[%clk 0:03:00.9]} 1... d5 {[%clk 0:02:59.7]} 2. Nf3 {[%clk 0:03:00.7]}
2... Nf6 {[%clk 0:02:59.5]} 3. Bf4 {[%clk 0:03:00.5]} 3... Bf5 {[%clk
0:02:56.3]} 4. e3 {[%clk 0:03:00.3]} 4... c6 {[%clk 0:02:56.4]} 5. c4 {[%clk
0:03:00.5]} 5... e6 {[%clk 0:02:55.9]} 6. Nc3 {[%clk 0:03:01.1]} 6... Nbd7
{[%clk 0:02:55.5]} 7. Bd3 {[%clk 0:02:59.8]} 7... Bg6 {[%clk 0:02:50.1]} 8. O-O
{[%clk 0:02:59.4]} 8... Be7 {[%clk 0:02:50.3]} 9. Rc1 {[%clk 0:02:58.5]} 9...
O-O {[%clk 0:02:50.1]} 10. h3 {[%clk 0:02:58.9]} 10... Re8 {[%clk 0:02:45.8]}
11. c5 {[%clk 0:02:52.5]} 11... Ne4 {[%clk 0:02:04.3]} 12. Qc2 {[%clk
0:02:51.2]} 12... Nxc3 {[%clk 0:02:02.7]} 13. bxc3 {[%clk 0:02:50.3]} 13... b6
{[%clk 0:02:01.6]} 14. Bxg6 {[%clk 0:02:45.6]} 14... hxg6 {[%clk 0:02:01]} 15.
cxb6 {[%clk 0:02:44.5]} 15... Nxb6 {[%clk 0:01:44.4]} 16. Ne5 {[%clk 0:02:43.7]}
16... c5 {[%clk 0:01:43]} 17. Rfd1 {[%clk 0:02:36.9]} 17... Rc8 {[%clk
0:01:38.5]} 18. Qe2 {[%clk 0:02:16.9]} 18... cxd4 {[%clk 0:01:19.1]} 19. cxd4
{[%clk 0:02:17.8]} 19... Bf6 {[%clk 0:01:10.7]} 20. Qa6 {[%clk 0:02:00.8]} 20...
Bxe5 {[%clk 0:01:08.7]} 21. Bxe5 {[%clk 0:02:01.1]} 21... Qd7 {[%clk 0:01:08.3]}
22. Rc5 {[%clk 0:01:50.1]} 22... Rxc5 {[%clk 0:00:54.8]} 23. dxc5 {[%clk
0:01:51]} 23... Qa4 {[%clk 0:00:41.7]} 24. Qxa4 {[%clk 0:01:49]} 24... Nxa4
{[%clk 0:00:42.6]} 25. c6 {[%clk 0:01:47.4]} 25... Rc8 {[%clk 0:00:40.9]} 26. c7
{[%clk 0:01:46]} 26... Kf8 {[%clk 0:00:39.1]} 27. Rb1 {[%clk 0:01:43.4]} 27...
Ke8 {[%clk 0:00:39.3]} 28. Rb7 {[%clk 0:01:41.6]} 28... a6 {[%clk 0:00:35.8]}
29. Bxg7 {[%clk 0:01:38.5]} 29... Kd7 {[%clk 0:00:33.5]} 30. Be5 {[%clk
0:01:38.8]} 30... Nc5 {[%clk 0:00:32]} 31. Rb6 {[%clk 0:01:27.1]} 31... Nd3
{[%clk 0:00:21.8]} 32. Bg3 {[%clk 0:01:16.9]} 32... e5 {[%clk 0:00:21.5]} 33.
Rb3 {[%clk 0:01:05.4]} 33... Nc1 {[%clk 0:00:18]} 34. Rb2 {[%clk 0:01:03.7]}
34... f6 {[%clk 0:00:14.6]} 35. Rb6 {[%clk 0:01:01.1]} 35... Ne2+ {[%clk
0:00:11]} 36. Kh2 {[%clk 0:01:01.1]} 36... Nxg3 {[%clk 0:00:11.7]} 37. Kxg3
{[%clk 0:01:01.7]} 37... Rxc7 {[%clk 0:00:09.5]} 38. Rxf6 {[%clk 0:00:58]} 38...
Rc2 {[%clk 0:00:02.4]} 39. Rxa6 {[%clk 0:00:54.2]} 39... d4 {[%clk 0:00:02.7]}
40. exd4 {[%clk 0:00:53]} 40... exd4 {[%clk 0:00:03.6]} 41. Rxg6 {[%clk
0:00:51.5]} 41... d3 {[%clk 0:00:03.1]} 42. Rg4 {[%clk 0:00:52]} 42... Ke6
{[%clk 0:00:01.9]} 43. Kf3 {[%clk 0:00:51.1]} 43... Rxa2 {[%clk 0:00:01.3]} 44.
Rd4 {[%clk 0:00:50]} 44... d2 {[%clk 0:00:01.1]} 45. g4 {[%clk 0:00:45.2]} 45...
Ke5 {[%clk 0:00:00.6]} 46. Rd8 {[%clk 0:00:42.3]} 46... Ra3+ {[%clk 0:00:00.2]}
47. Ke2 {[%clk 0:00:39.3]} 1-0

[Event "Late-Titled-Tuesday-Blitz-May-14-2024"]
[Site "Chess.com"]
[Date "2024.05.14"]
[Round "4"]
[White "WindWhistler11"]
[Black "Supergiuly"]
[Result "1-0"]
[WhiteElo "2519"]
[BlackElo "2335"]
[TimeControl "180+1"]
[EndTime "14:39:21 PDT"]
[Termination "WindWhistler11 won by resignation"]

1. Nf3 {[%clk 0:02:56.8]} 1... Nf6 {[%clk 0:02:38.4]} 2. c4 {[%clk 0:02:57.7]}
2... g6 {[%clk 0:02:36.5]} 3. g3 {[%clk 0:02:56.7]} 3... Bg7 {[%clk 0:02:37.4]}
4. Bg2 {[%clk 0:02:56.4]} 4... O-O {[%clk 0:02:38.3]} 5. O-O {[%clk 0:02:56.4]}
5... d6 {[%clk 0:02:38.9]} 6. Nc3 {[%clk 0:02:52.2]} 6... c5 {[%clk 0:02:39.4]}
7. b3 {[%clk 0:02:52.4]} 7... Nc6 {[%clk 0:02:35]} 8. Bb2 {[%clk 0:02:51.5]}
8... Bf5 {[%clk 0:02:33.2]} 9. Nh4 {[%clk 0:02:50.1]} 9... Bd7 {[%clk
0:02:23.5]} 10. e3 {[%clk 0:02:44.3]} 10... Rc8 {[%clk 0:02:23.2]} 11. f4 {[%clk
0:02:37.2]} 11... e5 {[%clk 0:02:22.3]} 12. f5 {[%clk 0:02:36]} 12... Nb4 {[%clk
0:02:03.5]} 13. d3 {[%clk 0:02:23.1]} 13... Re8 {[%clk 0:01:58.2]} 14. Bxb7
{[%clk 0:02:19.4]} 14... Rc7 {[%clk 0:01:56.2]} 15. Bg2 {[%clk 0:02:18.6]} 15...
Qc8 {[%clk 0:01:38.3]} 16. a3 {[%clk 0:02:12.8]} 16... Nc6 {[%clk 0:01:35.8]}
17. Nd5 {[%clk 0:01:59.5]} 17... Nxd5 {[%clk 0:01:19]} 18. cxd5 {[%clk
0:01:59.2]} 18... Na5 {[%clk 0:01:10.6]} 19. Bc3 {[%clk 0:01:49.3]} 19... Qa6
{[%clk 0:01:07.6]} 20. b4 {[%clk 0:01:31.6]} 20... Nb7 {[%clk 0:01:05.3]} 21.
fxg6 {[%clk 0:01:25.5]} 21... hxg6 {[%clk 0:01:03.1]} 22. Be4 {[%clk 0:01:25.2]}
22... cxb4 {[%clk 0:00:42.5]} 23. Bxb4 {[%clk 0:01:24.4]} 23... Qb6 {[%clk
0:00:36.3]} 24. Qf3 {[%clk 0:01:12.7]} 24... f5 {[%clk 0:00:35]} 25. Nxg6 {[%clk
0:01:04.4]} 25... fxe4 {[%clk 0:00:34.3]} 26. Qf7+ {[%clk 0:01:03.3]} 26... Kh7
{[%clk 0:00:33.6]} 27. Ne7 {[%clk 0:00:47.9]} 27... Qxe3+ {[%clk 0:00:28.8]} 28.
Kh1 {[%clk 0:00:46]} 28... Rxe7 {[%clk 0:00:14.6]} 29. Qxe7 {[%clk 0:00:43.4]}
29... Bg4 {[%clk 0:00:14.8]} 30. Qh4+ {[%clk 0:00:43.2]} 30... Bh6 {[%clk
0:00:13.5]} 31. Qxg4 {[%clk 0:00:43.4]} 31... exd3 {[%clk 0:00:13.9]} 32. Qf5+
{[%clk 0:00:41.9]} 32... Kh8 {[%clk 0:00:12.9]} 33. Qf6+ {[%clk 0:00:33.8]}
33... Bg7 {[%clk 0:00:13.2]} 34. Qh4+ {[%clk 0:00:32]} 34... Kg8 {[%clk
0:00:12.8]} 35. Rae1 {[%clk 0:00:28.4]} 35... Qb6 {[%clk 0:00:11.2]} 36. Qg4
{[%clk 0:00:25.7]} 36... Nc5 {[%clk 0:00:09.2]} 37. Bxc5 {[%clk 0:00:24.4]}
37... Qxc5 {[%clk 0:00:10.1]} 38. Qe6+ {[%clk 0:00:24.7]} 38... Kh8 {[%clk
0:00:09.8]} 39. Re4 {[%clk 0:00:24.1]} 39... Bh6 {[%clk 0:00:06]} 40. Qxh6+
{[%clk 0:00:22.8]} 1-0

[Event "Late-Titled-Tuesday-Blitz-May-14-2024"]
[Site "Chess.com"]
[Date "2024.05.14"]
[Round "4"]
[White "geordie_derraugh"]
[Black "only_strong_moves"]
[Result "1-0"]
[WhiteElo "2469"]
[BlackElo "2667"]
[TimeControl "180+1"]
[EndTime "14:39:22 PDT"]
[Termination "geordie_derraugh won by checkmate"]

1. e4 {[%clk 0:02:57.4]} 1... e5 {[%clk 0:02:59.6]} 2. Bc4 {[%clk 0:02:56.4]}
2... Nf6 {[%clk 0:02:56.3]} 3. d3 {[%clk 0:02:56.8]} 3... Nc6 {[%clk 0:02:52.5]}
4. Nc3 {[%clk 0:02:56.2]} 4... Bc5 {[%clk 0:02:52.9]} 5. f4 {[%clk 0:02:56]}
5... d6 {[%clk 0:02:49.3]} 6. Nf3 {[%clk 0:02:55.2]} 6... Ng4 {[%clk 0:02:46.6]}
7. Ng5 {[%clk 0:02:45.2]} 7... O-O {[%clk 0:02:32]} 8. f5 {[%clk 0:02:41.2]}
8... Bf2+ {[%clk 0:02:18.2]} 9. Kf1 {[%clk 0:02:34.4]} 9... Ne3+ {[%clk
0:02:18.3]} 10. Bxe3 {[%clk 0:02:34.2]} 10... Bxe3 {[%clk 0:02:19.2]} 11. Nf3
{[%clk 0:02:19.8]} 11... Nd4 {[%clk 0:02:19]} 12. Nd5 {[%clk 0:02:11.7]} 12...
Bh6 {[%clk 0:02:17.5]} 13. Nxd4 {[%clk 0:02:04.7]} 13... exd4 {[%clk 0:02:18.4]}
14. Qf3 {[%clk 0:01:59.1]} 14... c6 {[%clk 0:02:18.4]} 15. Nf4 {[%clk
0:01:58.6]} 15... Qg5 {[%clk 0:02:11.1]} 16. g3 {[%clk 0:01:58.6]} 16... g6
{[%clk 0:02:07.8]} 17. h4 {[%clk 0:01:56]} 17... Qf6 {[%clk 0:02:06.3]} 18. g4
{[%clk 0:01:51.9]} 18... Bxf4 {[%clk 0:02:00.3]} 19. Qxf4 {[%clk 0:01:51.3]}
19... d5 {[%clk 0:02:00.5]} 20. Bb3 {[%clk 0:01:41.6]} 20... Re8 {[%clk
0:01:57.7]} 21. Re1 {[%clk 0:01:40.8]} 21... Bd7 {[%clk 0:01:53.7]} 22. e5
{[%clk 0:01:27.7]} 22... Qe7 {[%clk 0:01:53.5]} 23. Qxd4 {[%clk 0:01:24.6]}
23... gxf5 {[%clk 0:01:49]} 24. g5 {[%clk 0:01:17.1]} 24... Be6 {[%clk
0:01:45.4]} 25. Qf4 {[%clk 0:01:15.6]} 25... c5 {[%clk 0:01:45]} 26. c3 {[%clk
0:01:14.4]} 26... d4 {[%clk 0:01:42.8]} 27. c4 {[%clk 0:00:58.5]} 27... a6
{[%clk 0:01:34]} 28. h5 {[%clk 0:00:53.7]} 28... b5 {[%clk 0:01:25.1]} 29. g6
{[%clk 0:00:53.9]} 29... fxg6 {[%clk 0:01:21.2]} 30. hxg6 {[%clk 0:00:53.3]}
30... hxg6 {[%clk 0:01:22.1]} 31. Re2 {[%clk 0:00:40.2]} 31... bxc4 {[%clk
0:01:16.4]} 32. Reh2 {[%clk 0:00:36.2]} 32... Qg7 {[%clk 0:01:16]} 33. Rh8+
{[%clk 0:00:30.6]} 33... Kf7 {[%clk 0:01:09.2]} 34. R8h7 {[%clk 0:00:28.3]}
34... cxb3 {[%clk 0:01:04.6]} 35. Rxg7+ {[%clk 0:00:28.3]} 35... Kxg7 {[%clk
0:01:05.5]} 36. Qh6+ {[%clk 0:00:28.4]} 36... Kf7 {[%clk 0:01:05.9]} 37. Qh7+
{[%clk 0:00:28.7]} 37... Kf8 {[%clk 0:01:06.4]} 38. Qh8+ {[%clk 0:00:19.3]}
38... Ke7 {[%clk 0:01:06.8]} 39. Qf6+ {[%clk 0:00:19.9]} 39... Kd7 {[%clk
0:01:07.4]} 40. Rh7+ {[%clk 0:00:20.1]} 40... Kc6 {[%clk 0:01:07.6]} 41. axb3
{[%clk 0:00:19.2]} 41... Rab8 {[%clk 0:01:06.1]} 42. Re7 {[%clk 0:00:18.6]}
42... Rxe7 {[%clk 0:01:00.3]} 43. Qxe7 {[%clk 0:00:19.5]} 43... Bxb3 {[%clk
0:01:00.4]} 44. Qd6+ {[%clk 0:00:20.2]} 44... Kb7 {[%clk 0:01:01]} 45. Qxc5
{[%clk 0:00:20.6]} 45... Bg8 {[%clk 0:00:52.6]} 46. Qxd4 {[%clk 0:00:20.5]}
46... Rc8 {[%clk 0:00:50.4]} 47. b4 {[%clk 0:00:20.1]} 47... Be6 {[%clk
0:00:47.3]} 48. Qd6 {[%clk 0:00:20.1]} 48... Rc6 {[%clk 0:00:47.6]} 49. Qe7+
{[%clk 0:00:20.5]} 49... Kb6 {[%clk 0:00:47.8]} 50. d4 {[%clk 0:00:19.8]} 50...
Bd5 {[%clk 0:00:42.7]} 51. Qd8+ {[%clk 0:00:19.6]} 51... Kb5 {[%clk 0:00:43.1]}
52. Qxd5+ {[%clk 0:00:20.2]} 52... Kb6 {[%clk 0:00:42.9]} 53. e6 {[%clk
0:00:20.6]} 53... Rxe6 {[%clk 0:00:42.3]} 54. Qxe6+ {[%clk 0:00:20.9]} 54... Kb5
{[%clk 0:00:43.2]} 55. Qxg6 {[%clk 0:00:21.5]} 55... Kxb4 {[%clk 0:00:44]} 56.
Qxf5 {[%clk 0:00:22.2]} 56... Kc4 {[%clk 0:00:44.7]} 57. Qc5+ {[%clk 0:00:22.8]}
57... Kd3 {[%clk 0:00:44.3]} 58. d5 {[%clk 0:00:23.2]} 58... Ke4 {[%clk
0:00:44.5]} 59. d6 {[%clk 0:00:23.8]} 59... a5 {[%clk 0:00:45.1]} 60. d7 {[%clk
0:00:24.5]} 60... a4 {[%clk 0:00:46]} 61. d8=Q {[%clk 0:00:24.6]} 61... a3
{[%clk 0:00:46.9]} 62. Qdd4+ {[%clk 0:00:25]} 62... Kf3 {[%clk 0:00:46.6]} 63.
Qcc3# {[%clk 0:00:25.9]} 1-0

[Event "Late-Titled-Tuesday-Blitz-May-14-2024"]
[Site "Chess.com"]
[Date "2024.05.14"]
[Round "4"]
[White "djano"]
[Black "el_sporco"]
[Result "1-0"]
[WhiteElo "2537"]
[BlackElo "2361"]
[TimeControl "180+1"]
[EndTime "14:39:25 PDT"]
[Termination "djano won by checkmate"]

1. Nf3 {[%clk 0:03:00.9]} 1... d5 {[%clk 0:02:53.8]} 2. e3 {[%clk 0:03:00.9]}
2... c5 {[%clk 0:02:52.9]} 3. c4 {[%clk 0:03:00.5]} 3... Nf6 {[%clk 0:02:47.7]}
4. cxd5 {[%clk 0:02:58.6]} 4... Nxd5 {[%clk 0:02:48.6]} 5. Nc3 {[%clk
0:02:58.7]} 5... Nc6 {[%clk 0:02:43.9]} 6. Qc2 {[%clk 0:02:52.3]} 6... g6 {[%clk
0:02:40.3]} 7. Nxd5 {[%clk 0:02:49.5]} 7... Qxd5 {[%clk 0:02:41.2]} 8. Bc4
{[%clk 0:02:49.8]} 8... Qh5 {[%clk 0:02:25.1]} 9. Qc3 {[%clk 0:02:44.2]} 9... e5
{[%clk 0:01:39.5]} 10. Bb5 {[%clk 0:02:30]} 10... Bd6 {[%clk 0:01:23.7]} 11. b3
{[%clk 0:02:23]} 11... O-O {[%clk 0:01:18.4]} 12. Bb2 {[%clk 0:02:23]} 12... Nb4
{[%clk 0:01:03.7]} 13. a3 {[%clk 0:02:04.7]} 13... Nd5 {[%clk 0:01:01.9]} 14.
Qc2 {[%clk 0:01:51.8]} 14... Nc7 {[%clk 0:00:50.2]} 15. Be2 {[%clk 0:01:49.1]}
15... Bf5 {[%clk 0:00:46.6]} 16. Qc3 {[%clk 0:01:46.2]} 16... Nd5 {[%clk
0:00:45.2]} 17. Qc4 {[%clk 0:01:46.2]} 17... Nb6 {[%clk 0:00:44.5]} 18. Qc1
{[%clk 0:01:40.6]} 18... Bg4 {[%clk 0:00:42.8]} 19. d3 {[%clk 0:01:30.2]} 19...
f6 {[%clk 0:00:41.3]} 20. h3 {[%clk 0:01:28.4]} 20... Rac8 {[%clk 0:00:36.6]}
21. Qd2 {[%clk 0:01:28]} 21... Bxf3 {[%clk 0:00:18]} 22. Bxf3 {[%clk 0:01:27.9]}
22... Qh6 {[%clk 0:00:17.7]} 23. O-O {[%clk 0:01:24.3]} 23... Rc7 {[%clk
0:00:17.4]} 24. Rac1 {[%clk 0:01:23.1]} 24... Qg7 {[%clk 0:00:16.1]} 25. Rfd1
{[%clk 0:01:22.9]} 25... Qe7 {[%clk 0:00:14.9]} 26. d4 {[%clk 0:01:23.2]} 26...
cxd4 {[%clk 0:00:15]} 27. exd4 {[%clk 0:01:24.1]} 27... e4 {[%clk 0:00:15.3]}
28. Re1 {[%clk 0:01:23.4]} 28... f5 {[%clk 0:00:15.5]} 29. d5 {[%clk 0:01:24]}
29... Be5 {[%clk 0:00:15]} 30. Rxc7 {[%clk 0:01:21.2]} 30... Qxc7 {[%clk
0:00:15]} 31. Rc1 {[%clk 0:01:17.1]} 31... Qd6 {[%clk 0:00:14.9]} 32. Be2 {[%clk
0:01:16.7]} 32... Bxb2 {[%clk 0:00:14.8]} 33. Qxb2 {[%clk 0:01:17.6]} 33... Qxd5
{[%clk 0:00:14.4]} 34. Rd1 {[%clk 0:01:16.9]} 34... Qf7 {[%clk 0:00:13.3]} 35.
Qe5 {[%clk 0:01:15]} 35... Re8 {[%clk 0:00:11.7]} 36. Qb5 {[%clk 0:01:14.7]}
36... Qe7 {[%clk 0:00:09.6]} 37. a4 {[%clk 0:01:14]} 37... Rd8 {[%clk 0:00:10]}
38. Rc1 {[%clk 0:01:13.7]} 38... Rc8 {[%clk 0:00:09.7]} 39. Rd1 {[%clk 0:01:13]}
39... Rd8 {[%clk 0:00:09.7]} 40. a5 {[%clk 0:01:12.1]} 40... Rxd1+ {[%clk
0:00:09.5]} 41. Bxd1 {[%clk 0:01:13]} 41... Nc8 {[%clk 0:00:09.5]} 42. Be2
{[%clk 0:01:12]} 42... Nd6 {[%clk 0:00:09.9]} 43. Qd5+ {[%clk 0:01:12.1]} 43...
Kg7 {[%clk 0:00:09.8]} 44. Qd4+ {[%clk 0:01:10.4]} 44... Kh6 {[%clk 0:00:07.7]}
45. Qxa7 {[%clk 0:01:09.9]} 45... f4 {[%clk 0:00:08]} 46. a6 {[%clk 0:01:08.8]}
46... e3 {[%clk 0:00:07]} 47. fxe3 {[%clk 0:01:07.9]} 47... fxe3 {[%clk
0:00:07.9]} 48. axb7 {[%clk 0:01:06.4]} 48... Nxb7 {[%clk 0:00:04.5]} 49. Bf3
{[%clk 0:01:02]} 49... e2 {[%clk 0:00:04.8]} 50. Bxe2 {[%clk 0:01:01.9]} 50...
Qxe2 {[%clk 0:00:05]} 51. Qxb7 {[%clk 0:01:02.5]} 51... Qe1+ {[%clk 0:00:05.1]}
52. Kh2 {[%clk 0:01:03.1]} 52... Qe5+ {[%clk 0:00:06]} 53. g3 {[%clk 0:01:03.5]}
53... Qe2+ {[%clk 0:00:06.4]} 54. Qg2 {[%clk 0:01:03.6]} 54... Qe3 {[%clk
0:00:07.1]} 55. Qb2 {[%clk 0:01:03]} 55... Kg5 {[%clk 0:00:06.5]} 56. b4 {[%clk
0:01:03.2]} 56... h5 {[%clk 0:00:06.9]} 57. h4+ {[%clk 0:01:03.1]} 57... Kg4
{[%clk 0:00:06.3]} 58. Qg2 {[%clk 0:01:03.3]} 58... Qb3 {[%clk 0:00:05.1]} 59.
Qe4# {[%clk 0:01:03]} 1-0

[Event "Late-Titled-Tuesday-Blitz-May-14-2024"]
[Site "Chess.com"]
[Date "2024.05.14"]
[Round "4"]
[White "David_ATM"]
[Black "Masterisback04"]
[Result "1-0"]
[WhiteElo "2451"]
[BlackElo "2021"]
[TimeControl "180+1"]
[EndTime "14:39:27 PDT"]
[Termination "David_ATM won on time"]

1. e4 {[%clk 0:03:00.9]} 1... c5 {[%clk 0:02:58.2]} 2. c3 {[%clk 0:03:00.9]}
2... g6 {[%clk 0:02:53.2]} 3. d4 {[%clk 0:03:00.5]} 3... Bg7 {[%clk 0:02:53.8]}
4. Nf3 {[%clk 0:02:59.4]} 4... cxd4 {[%clk 0:02:52.3]} 5. cxd4 {[%clk
0:02:59.3]} 5... d5 {[%clk 0:02:52.7]} 6. e5 {[%clk 0:02:59.3]} 6... Nc6 {[%clk
0:02:53.3]} 7. Nc3 {[%clk 0:02:59.4]} 7... Nh6 {[%clk 0:02:53.8]} 8. Bxh6 {[%clk
0:02:58.3]} 8... Bxh6 {[%clk 0:02:53.8]} 9. h4 {[%clk 0:02:54]} 9... Bg4 {[%clk
0:02:46.3]} 10. Be2 {[%clk 0:02:54.1]} 10... e6 {[%clk 0:02:46.4]} 11. Ng1
{[%clk 0:02:49]} 11... Bxe2 {[%clk 0:02:37.2]} 12. Ngxe2 {[%clk 0:02:49.9]}
12... Qb6 {[%clk 0:02:29.1]} 13. Qb3 {[%clk 0:02:35.3]} 13... Qxb3 {[%clk
0:01:19.4]} 14. axb3 {[%clk 0:02:36.2]} 14... Nb4 {[%clk 0:01:18.8]} 15. O-O
{[%clk 0:02:34]} 15... a6 {[%clk 0:00:51]} 16. f4 {[%clk 0:01:34.8]} 16... Kd7
{[%clk 0:00:50.7]} 17. Na4 {[%clk 0:01:29.4]} 17... Ke7 {[%clk 0:00:40]} 18. Nb6
{[%clk 0:01:22.3]} 18... Rab8 {[%clk 0:00:38.5]} 19. Rac1 {[%clk 0:01:16.9]}
19... Nc6 {[%clk 0:00:38.1]} 20. g3 {[%clk 0:01:11.8]} 20... Rhd8 {[%clk
0:00:37.8]} 21. Kf2 {[%clk 0:01:11.7]} 21... Ke8 {[%clk 0:00:27.6]} 22. Ke3
{[%clk 0:01:07]} 22... Bf8 {[%clk 0:00:25]} 23. Nc3 {[%clk 0:01:07.2]} 23... Na5
{[%clk 0:00:19.1]} 24. Nca4 {[%clk 0:00:57]} 24... Nxb3 {[%clk 0:00:13.2]} 25.
Rc7 {[%clk 0:00:57.4]} 25... Be7 {[%clk 0:00:13.5]} 26. h5 {[%clk 0:00:51]}
26... g5 {[%clk 0:00:12.4]} 27. fxg5 {[%clk 0:00:44.6]} 27... Bxg5+ {[%clk
0:00:13.3]} 28. Kd3 {[%clk 0:00:45]} 28... Be7 {[%clk 0:00:09.2]} 29. g4 {[%clk
0:00:37]} 29... Na5 {[%clk 0:00:07.8]} 30. Nc5 {[%clk 0:00:36]} 30... Nc6 {[%clk
0:00:05.1]} 31. Nxb7 {[%clk 0:00:22.9]} 31... Nb4+ {[%clk 0:00:03.2]} 32. Kd2
{[%clk 0:00:23.3]} 32... a5 {[%clk 0:00:01.8]} 33. Nxd8 {[%clk 0:00:20.4]} 33...
Kxd8 {[%clk 0:00:02.1]} 34. Ra7 {[%clk 0:00:11]} 34... Bg5+ {[%clk 0:00:01.6]}
35. Kd1 {[%clk 0:00:09.3]} 35... Rxb6 {[%clk 0:00:00.5]} 36. Rfxf7 {[%clk
0:00:09.9]} 1-0

[Event "Late-Titled-Tuesday-Blitz-May-14-2024"]
[Site "Chess.com"]
[Date "2024.05.14"]
[Round "4"]
[White "Zhigalko_Sergei"]
[Black "Veleamater"]
[Result "1-0"]
[WhiteElo "2829"]
[BlackElo "2441"]
[TimeControl "180+1"]
[EndTime "14:39:28 PDT"]
[Termination "Zhigalko_Sergei won by checkmate"]

1. e4 {[%clk 0:03:00.9]} 1... e5 {[%clk 0:02:59.5]} 2. Nf3 {[%clk 0:03:01.1]}
2... Nc6 {[%clk 0:03:00]} 3. Bc4 {[%clk 0:03:01.3]} 3... Nf6 {[%clk 0:02:59.1]}
4. d3 {[%clk 0:03:01.6]} 4... Be7 {[%clk 0:02:59.1]} 5. O-O {[%clk 0:03:01.8]}
5... O-O {[%clk 0:02:59.6]} 6. Nbd2 {[%clk 0:03:02.5]} 6... d6 {[%clk
0:03:00.1]} 7. c3 {[%clk 0:03:02.7]} 7... Be6 {[%clk 0:03:00.5]} 8. Re1 {[%clk
0:03:01.4]} 8... Nd7 {[%clk 0:03:00]} 9. d4 {[%clk 0:02:45.4]} 9... exd4 {[%clk
0:02:48.6]} 10. cxd4 {[%clk 0:02:43.9]} 10... Bg4 {[%clk 0:02:38.6]} 11. h3
{[%clk 0:02:40.5]} 11... Bh5 {[%clk 0:02:38.7]} 12. Nb3 {[%clk 0:01:31.3]} 12...
Bf6 {[%clk 0:02:32.3]} 13. Be3 {[%clk 0:01:30.8]} 13... Re8 {[%clk 0:02:25.5]}
14. g4 {[%clk 0:00:47]} 14... Bg6 {[%clk 0:02:22]} 15. g5 {[%clk 0:00:47.6]}
15... Be7 {[%clk 0:02:07.8]} 16. Nbd2 {[%clk 0:00:45.9]} 16... Bh5 {[%clk
0:02:00.6]} 17. Qc2 {[%clk 0:00:42]} 17... Nb6 {[%clk 0:01:53.2]} 18. Bb5 {[%clk
0:00:36.1]} 18... d5 {[%clk 0:01:30.7]} 19. e5 {[%clk 0:00:33.4]} 19... Nb4
{[%clk 0:01:16.2]} 20. Qb3 {[%clk 0:00:30.9]} 20... c6 {[%clk 0:01:15.1]} 21.
Bf1 {[%clk 0:00:30.5]} 21... Bg6 {[%clk 0:01:14.3]} 22. Rac1 {[%clk 0:00:29.4]}
22... Qd7 {[%clk 0:01:13.6]} 23. Nh4 {[%clk 0:00:25.1]} 23... f6 {[%clk
0:01:00.9]} 24. gxf6 {[%clk 0:00:21.1]} 24... gxf6 {[%clk 0:01:00.6]} 25. Nxg6
{[%clk 0:00:18.1]} 25... hxg6 {[%clk 0:01:00.3]} 26. exf6 {[%clk 0:00:16.1]}
26... Bxf6 {[%clk 0:00:59.3]} 27. Qxb4 {[%clk 0:00:15.6]} 27... Qf5 {[%clk
0:00:48.9]} 28. Bg2 {[%clk 0:00:14.1]} 28... Kg7 {[%clk 0:00:47]} 29. Qb3 {[%clk
0:00:11.8]} 29... Rh8 {[%clk 0:00:45.2]} 30. Nf1 {[%clk 0:00:10.6]} 30... Bh4
{[%clk 0:00:39.8]} 31. Ng3 {[%clk 0:00:10.2]} 31... Bxg3 {[%clk 0:00:39.6]} 32.
fxg3 {[%clk 0:00:10.4]} 32... Rxh3 {[%clk 0:00:40.1]} 33. Bf4 {[%clk 0:00:06.9]}
33... Rah8 {[%clk 0:00:37.1]} 34. Be5+ {[%clk 0:00:06.1]} 34... Kg8 {[%clk
0:00:33.8]} 35. Bxh8 {[%clk 0:00:07]} 35... Rxh8 {[%clk 0:00:33.6]} 36. Qf3
{[%clk 0:00:06.5]} 36... Qd7 {[%clk 0:00:31]} 37. b3 {[%clk 0:00:06.9]} 37...
Kg7 {[%clk 0:00:30.7]} 38. Rf1 {[%clk 0:00:06.8]} 38... Rh5 {[%clk 0:00:25.7]}
39. Qf6+ {[%clk 0:00:06.3]} 39... Kh6 {[%clk 0:00:26]} 40. Rce1 {[%clk
0:00:06.8]} 40... Rf5 {[%clk 0:00:23.9]} 41. Rxf5 {[%clk 0:00:05.9]} 41... Qxf5
{[%clk 0:00:22.4]} 42. Qh8+ {[%clk 0:00:05.7]} 42... Kg5 {[%clk 0:00:21.8]} 43.
Qh4# {[%clk 0:00:06.3]} 1-0

[Event "Late-Titled-Tuesday-Blitz-May-14-2024"]
[Site "Chess.com"]
[Date "2024.05.14"]
[Round "4"]
[White "Love7Unicorn"]
[Black "OIAM03"]
[Result "1-0"]
[WhiteElo "2507"]
[BlackElo "1969"]
[TimeControl "180+1"]
[EndTime "14:39:29 PDT"]
[Termination "Love7Unicorn won by checkmate"]

1. d4 {[%clk 0:02:59.7]} 1... Nf6 {[%clk 0:02:59.5]} 2. c4 {[%clk 0:02:57.4]}
2... g6 {[%clk 0:02:59.8]} 3. Nc3 {[%clk 0:02:55.9]} 3... d5 {[%clk 0:03:00]} 4.
Nf3 {[%clk 0:02:55.6]} 4... Bg7 {[%clk 0:02:59.9]} 5. h4 {[%clk 0:02:55.3]} 5...
h5 {[%clk 0:02:59.2]} 6. Bg5 {[%clk 0:02:54.8]} 6... dxc4 {[%clk 0:02:57.3]} 7.
e4 {[%clk 0:02:53.5]} 7... c6 {[%clk 0:02:41.7]} 8. Bxc4 {[%clk 0:02:37.6]} 8...
b5 {[%clk 0:02:42]} 9. Bd3 {[%clk 0:02:15.5]} 9... Bg4 {[%clk 0:02:33.3]} 10.
Ne2 {[%clk 0:02:01.7]} 10... Bxf3 {[%clk 0:02:25.4]} 11. gxf3 {[%clk 0:02:02.6]}
11... Nbd7 {[%clk 0:02:15.3]} 12. a4 {[%clk 0:01:55.6]} 12... a6 {[%clk
0:02:09.8]} 13. Be3 {[%clk 0:01:37.9]} 13... O-O {[%clk 0:02:02.5]} 14. Rg1
{[%clk 0:01:24.9]} 14... Nb6 {[%clk 0:02:00.9]} 15. b3 {[%clk 0:01:22.5]} 15...
Nfd7 {[%clk 0:01:27.9]} 16. a5 {[%clk 0:01:15.7]} 16... Nc8 {[%clk 0:01:25.5]}
17. f4 {[%clk 0:01:07]} 17... c5 {[%clk 0:01:21.5]} 18. e5 {[%clk 0:01:02.9]}
18... cxd4 {[%clk 0:01:11.1]} 19. Nxd4 {[%clk 0:01:03.8]} 19... e6 {[%clk
0:01:11.7]} 20. Be4 {[%clk 0:00:58.7]} 20... Ne7 {[%clk 0:01:07.9]} 21. Bxa8
{[%clk 0:00:50.1]} 21... Qxa8 {[%clk 0:01:08.2]} 22. Nxe6 {[%clk 0:00:50.7]}
22... Nxe5 {[%clk 0:00:42.7]} 23. fxe5 {[%clk 0:00:35.8]} 23... fxe6 {[%clk
0:00:42]} 24. Qd7 {[%clk 0:00:36.3]} 24... Nf5 {[%clk 0:00:26.4]} 25. Qxe6+
{[%clk 0:00:35.4]} 25... Kh8 {[%clk 0:00:25.8]} 26. Qxg6 {[%clk 0:00:22.7]}
26... Qe4 {[%clk 0:00:20.3]} 27. Rd1 {[%clk 0:00:12.4]} 27... Qb4+ {[%clk
0:00:19.5]} 28. Rd2 {[%clk 0:00:11.8]} 28... Qxb3 {[%clk 0:00:17.9]} 29. Qxh5+
{[%clk 0:00:10]} 29... Kg8 {[%clk 0:00:16.3]} 30. Qd1 {[%clk 0:00:06.4]} 30...
Qxd1+ {[%clk 0:00:16]} 31. Kxd1 {[%clk 0:00:04.7]} 31... Nxe3+ {[%clk
0:00:16.2]} 32. fxe3 {[%clk 0:00:05.6]} 32... Re8 {[%clk 0:00:15.4]} 33. Rd7
{[%clk 0:00:05.3]} 33... Rxe5 {[%clk 0:00:12.2]} 34. Rgxg7+ {[%clk 0:00:03.7]}
34... Kf8 {[%clk 0:00:12.3]} 35. Rdf7+ {[%clk 0:00:04]} 35... Ke8 {[%clk
0:00:12.4]} 36. Ra7 {[%clk 0:00:04.9]} 36... Rd5+ {[%clk 0:00:12.1]} 37. Ke2
{[%clk 0:00:05.4]} 37... Rd8 {[%clk 0:00:12.1]} 38. Rg8# {[%clk 0:00:05.7]} 1-0